fUSD/lending_fUSD_20260611
["ID","MTS","AMOUNT","RATE_DAILY","PERIOD"]
[424776792,1781154640000,-161.124572,0.00012961,2]
[424776790,1781154640000,-249.504305,0.00012961,2]
[424776791,1781154640000,-261.097116,0.00012961,2]
[424776785,1781154640000,-745.33260886,0.00012895,2]
[424776789,1781154640000,-204.752152,0.00012961,2]
[424776797,1781154640000,-745.33260886,0.00012973,2]
[424776849,1781154641000,-150.0,0.00013488,2]
[424776858,1781154641000,-150.0,0.0001353,2]
[424776855,1781154641000,-218.44302289,0.00013503,2]
[424776853,1781154641000,-150.0,0.00013488,2]
[424776859,1781154641000,-218.44302289,0.00013533,2]
[424776850,1781154641000,-150.0,0.00013488,2]
[424776854,1781154641000,-150.0,0.00013488,2]
[424776856,1781154641000,-218.44302289,0.00013518,2]
[424776862,1781154641000,-150.0,0.00013553,2]
[424776857,1781154641000,-150.0,0.00013528,2]
[424776861,1781154641000,-218.44302289,0.00013548,2]
[424776875,1781154641000,-150.0,0.00013618,2]
[424776874,1781154641000,-150.0,0.00013616,2]
[424776869,1781154641000,-218.44302289,0.00013594,2]
[424776865,1781154641000,-218.44302289,0.00013563,2]
[424776870,1781154641000,-218.44302289,0.00013609,2]
[424776867,1781154641000,-150.0,0.00013573,2]
[424776866,1781154641000,-150.0,0.00013569,2]
[424776864,1781154641000,-150.0,0.00013563,2]
[424776868,1781154641000,-218.44302289,0.00013578,2]
[424776872,1781154641000,-279.20748,0.00013609,2]
[424776873,1781154641000,-176.600917,0.00013609,2]
[424776851,1781154641000,-218.44302289,0.00013488,2]
[424776863,1781154641000,-7348.652877,0.00013559,2]
[424776852,1781154641000,-203.85144979,0.00013488,2]
[424776822,1781154641000,-745.33260886,0.00013241,2]
[424776848,1781154641000,-150.0,0.00013488,2]
[424776825,1781154641000,-745.33260886,0.00013276,2]
[424776827,1781154641000,-745.33260886,0.00013293,2]
[424776824,1781154641000,-745.33260886,0.00013259,2]
[424776826,1781154641000,-167.49,0.00013278,2]
[424776836,1781154641000,-433.0,0.00013402,2]
[424776830,1781154641000,-745.33260886,0.00013326,2]
[424776838,1781154641000,-7348.652877,0.00013406,2]
[424776828,1781154641000,-745.33260886,0.00013309,2]
[424776837,1781154641000,-745.33260886,0.00013404,2]
[424776829,1781154641000,-7348.652877,0.00013322,2]
[424776831,1781154641000,-745.33260886,0.00013342,2]
[424776860,1781154641000,-159.47308989,0.00013545,2]
[424776832,1781154641000,-745.33260886,0.00013358,2]
[424776833,1781154641000,-745.33260886,0.00013374,2]
[424776834,1781154641000,-745.33260886,0.00013389,2]
[424776841,1781154641000,-745.33260886,0.00013449,2]
[424776839,1781154641000,-745.33260886,0.00013419,2]
[424776842,1781154641000,-745.33260901,0.0001347,2]
[424776844,1781154641000,-150.0,0.00013488,2]
[424776843,1781154641000,-7348.652877,0.00013485,2]
[424776846,1781154641000,-150.0,0.00013488,2]
[424776845,1781154641000,-150.0,0.00013488,2]
[424776840,1781154641000,-745.33260886,0.00013434,2]
[424776847,1781154641000,-150.0,0.00013488,2]
[424776835,1781154641000,-944.39,0.00013398,2]
[424776871,1781154641000,-150.0,0.00013609,2]
[424776889,1781154641000,-218.44302289,0.00013684,2]
[424776879,1781154641000,-500.0,0.00013644,2]
[424776907,1781154641000,-500.0,0.00013698,2]
[424776906,1781154641000,-500.0,0.00013698,2]
[424776913,1781154641000,-500.0,0.00013698,2]
[424776914,1781154641000,-500.0,0.00013698,2]
[424776909,1781154641000,-500.0,0.00013698,2]
[424776910,1781154641000,-579.39543898,0.00013698,2]
[424776911,1781154641000,-500.0,0.00013698,2]
[424776912,1781154641000,-500.0,0.00013698,2]
[424776917,1781154641000,-500.0,0.00013698,2]
[424776918,1781154641000,-500.0,0.00013698,2]
[424776919,1781154641000,-500.0,0.00013698,2]
[424776923,1781154641000,-500.0,0.00013698,2]
[424776916,1781154641000,-500.0,0.00013698,2]
[424776921,1781154641000,-500.0,0.00013698,2]
[424776924,1781154641000,-500.0,0.00013698,2]
[424776920,1781154641000,-500.0,0.00013698,2]
[424776915,1781154641000,-500.0,0.00013698,2]
[424776922,1781154641000,-500.0,0.00013698,2]
[424776926,1781154641000,-500.0,0.00013698,2]
[424776925,1781154641000,-179.84270164,0.00013698,2]
[424776927,1781154641000,-500.0,0.00013698,2]
[424776929,1781154641000,-500.0,0.00013698,2]
[424776876,1781154641000,-218.44302289,0.00013624,2]
[424776908,1781154641000,-500.0,0.00013698,2]
[424776904,1781154641000,-538.43007766,0.00013698,2]
[424776928,1781154641000,-500.0,0.00013698,2]
[424776903,1781154641000,-500.0,0.00013698,2]
[424776877,1781154641000,-150.0,0.00013638,2]
[424776878,1781154641000,-218.44302289,0.00013639,2]
[424776880,1781154641000,-26792.97625512,0.00013644,2]
[424776883,1781154641000,-20036.23823755,0.00013656,2]
[424776882,1781154641000,-218.44302289,0.00013654,2]
[424776881,1781154641000,-150.0,0.0001365,2]
[424776884,1781154641000,-150.0,0.00013659,2]
[424776905,1781154641000,-500.0,0.00013698,2]
[424776888,1781154641000,-150.0,0.00013683,2]
[424776891,1781154641000,-574.57860626,0.00013698,2]
[424776887,1781154641000,-291.799841,0.00013682,2]
[424776886,1781154641000,-228.006469,0.00013682,2]
[424776885,1781154641000,-218.44302289,0.00013669,2]
[424776892,1781154641000,-500.0,0.00013698,2]
[424776897,1781154641000,-362.50237529,0.00013698,2]
[424776895,1781154641000,-500.0,0.00013698,2]
[424776893,1781154641000,-500.0,0.00013698,2]
[424776899,1781154641000,-500.0,0.00013698,2]
[424776900,1781154641000,-500.0,0.00013698,2]
[424776902,1781154641000,-500.0,0.00013698,2]
[424776894,1781154641000,-503.31933434,0.00013698,2]
[424776896,1781154641000,-500.0,0.00013698,2]
[424776898,1781154641000,-500.0,0.00013698,2]
[424776890,1781154641000,-150.0,0.0001369,2]
[424776901,1781154641000,-500.0,0.00013698,2]
[424776965,1781154642000,-500.0,0.00013698,2]
[424776962,1781154642000,-500.0,0.00013698,2]
[424776960,1781154642000,-500.0,0.00013698,2]
[424776961,1781154642000,-500.0,0.00013698,2]
[424776966,1781154642000,-500.0,0.00013698,2]
[424776959,1781154642000,-500.0,0.00013698,2]
[424776964,1781154642000,-500.0,0.00013698,2]
[424776958,1781154642000,-500.0,0.00013698,2]
[424776963,1781154642000,-527.02640831,0.00013698,2]
[424776967,1781154642000,-500.0,0.00013698,2]
[424776981,1781154642000,-500.0,0.00013698,2]
[424776975,1781154642000,-500.0,0.00013698,2]
[424776973,1781154642000,-500.0,0.00013698,2]
[424776968,1781154642000,-500.0,0.00013698,2]
[424776970,1781154642000,-473.88481406,0.00013698,2]
[424776976,1781154642000,-500.0,0.00013698,2]
[424776974,1781154642000,-500.0,0.00013698,2]
[424776971,1781154642000,-500.0,0.00013698,2]
[424776972,1781154642000,-500.0,0.00013698,2]
[424776977,1781154642000,-500.0,0.00013698,2]
[424776980,1781154642000,-500.0,0.00013698,2]
[424776957,1781154642000,-500.0,0.00013698,2]
[424776969,1781154642000,-504.05769263,0.00013698,2]
[424776955,1781154642000,-500.0,0.00013698,2]
[424776940,1781154642000,-500.0,0.00013698,2]
[424776954,1781154642000,-500.0,0.00013698,2]
[424776979,1781154642000,-500.0,0.00013698,2]
[424776930,1781154642000,-500.0,0.00013698,2]
[424776932,1781154642000,-500.0,0.00013698,2]
[424776934,1781154642000,-500.0,0.00013698,2]
[424776931,1781154642000,-500.0,0.00013698,2]
[424776935,1781154642000,-500.0,0.00013698,2]
[424776937,1781154642000,-500.0,0.00013698,2]
[424776936,1781154642000,-500.0,0.00013698,2]
[424776938,1781154642000,-500.0,0.00013698,2]
[424776941,1781154642000,-500.0,0.00013698,2]
[424776943,1781154642000,-500.0,0.00013698,2]
[424776944,1781154642000,-500.0,0.00013698,2]
[424776939,1781154642000,-500.0,0.00013698,2]
[424776942,1781154642000,-500.0,0.00013698,2]
[424776945,1781154642000,-500.0,0.00013698,2]
[424776947,1781154642000,-500.0,0.00013698,2]
[424776946,1781154642000,-500.0,0.00013698,2]
[424776948,1781154642000,-504.25668169,0.00013698,2]
[424776949,1781154642000,-500.0,0.00013698,2]
[424776951,1781154642000,-500.0,0.00013698,2]
[424776953,1781154642000,-500.0,0.00013698,2]
[424776950,1781154642000,-500.0,0.00013698,2]
[424776952,1781154642000,-500.0,0.00013698,2]
[424776956,1781154642000,-500.0,0.00013698,2]
[424776978,1781154642000,-500.0,0.00013698,2]
[424776933,1781154642000,-500.0,0.00013698,2]
[424776982,1781154642000,-500.0,0.00013698,2]
[424777024,1781154642000,-985.2,0.00013698,2]
[424777020,1781154642000,-500.0,0.00013698,2]
[424777027,1781154642000,-985.2,0.00013698,2]
[424777026,1781154642000,-985.2,0.00013698,2]
[424777021,1781154642000,-500.0,0.00013698,2]
[424777029,1781154642000,-985.2,0.00013698,2]
[424777028,1781154642000,-985.2,0.00013698,2]
[424777023,1781154642000,-985.2,0.00013698,2]
[424777025,1781154642000,-985.2,0.00013698,2]
[424777031,1781154642000,-985.2,0.00013698,2]
[424777033,1781154642000,-985.2,0.00013698,2]
[424777030,1781154642000,-985.2,0.00013698,2]
[424777037,1781154642000,-500.0,0.00013698,2]
[424777034,1781154642000,-500.0,0.00013698,2]
[424777032,1781154642000,-985.2,0.00013698,2]
[424777035,1781154642000,-292.30346816,0.00013698,2]
[424777038,1781154642000,-500.0,0.00013698,2]
[424777039,1781154642000,-500.0,0.00013698,2]
[424777036,1781154642000,-500.0,0.00013698,2]
[424777040,1781154642000,-500.0,0.00013698,2]
[424777041,1781154642000,-500.0,0.00013698,2]
[424777043,1781154642000,-500.0,0.00013698,2]
[424776983,1781154642000,-500.0,0.00013698,2]
[424777019,1781154642000,-500.0,0.00013698,2]
[424777022,1781154642000,-500.0,0.00013698,2]
[424777042,1781154642000,-500.0,0.00013698,2]
[424777006,1781154642000,-500.0,0.00013698,2]
[424777018,1781154642000,-500.0,0.00013698,2]
[424776985,1781154642000,-500.0,0.00013698,2]
[424776984,1781154642000,-500.0,0.00013698,2]
[424776989,1781154642000,-500.0,0.00013698,2]
[424776991,1781154642000,-500.0,0.00013698,2]
[424776988,1781154642000,-500.0,0.00013698,2]
[424776987,1781154642000,-500.0,0.00013698,2]
[424776992,1781154642000,-500.0,0.00013698,2]
[424776990,1781154642000,-500.0,0.00013698,2]
[424776994,1781154642000,-500.0,0.00013698,2]
[424776996,1781154642000,-500.0,0.00013698,2]
[424776997,1781154642000,-500.0,0.00013698,2]
[424776986,1781154642000,-500.0,0.00013698,2]
[424776995,1781154642000,-500.0,0.00013698,2]
[424777011,1781154642000,-500.0,0.00013698,2]
[424777017,1781154642000,-500.0,0.00013698,2]
[424777014,1781154642000,-583.93,0.00013698,2]
[424777001,1781154642000,-500.0,0.00013698,2]
[424776999,1781154642000,-500.0,0.00013698,2]
[424777016,1781154642000,-220.04454981,0.00013698,2]
[424777002,1781154642000,-500.0,0.00013698,2]
[424777004,1781154642000,-500.0,0.00013698,2]
[424777009,1781154642000,-500.0,0.00013698,2]
[424777008,1781154642000,-500.0,0.00013698,2]
[424776993,1781154642000,-500.0,0.00013698,2]
[424777078,1781154643000,-500.0,0.00013698,2]
[424777077,1781154643000,-500.0,0.00013698,2]
[424777081,1781154643000,-551.89013735,0.00013698,2]
[424777073,1781154643000,-500.0,0.00013698,2]
[424777084,1781154643000,-500.0,0.00013698,2]
[424777076,1781154643000,-500.0,0.00013698,2]
[424777085,1781154643000,-500.0,0.00013698,2]
[424777083,1781154643000,-500.0,0.00013698,2]
[424777075,1781154643000,-500.0,0.00013698,2]
[424777082,1781154643000,-500.0,0.00013698,2]
[424777089,1781154643000,-500.0,0.00013698,2]
[424777087,1781154643000,-500.0,0.00013698,2]
[424777086,1781154643000,-409.2403445,0.00013698,2]
[424777097,1781154643000,-785.74,0.00013698,2]
[424777094,1781154643000,-785.74,0.00013698,2]
[424777093,1781154643000,-785.74,0.00013698,2]
[424777095,1781154643000,-785.74,0.00013698,2]
[424777090,1781154643000,-500.0,0.00013698,2]
[424777096,1781154643000,-785.74,0.00013698,2]
[424777092,1781154643000,-785.74,0.00013698,2]
[424777088,1781154643000,-500.0,0.00013698,2]
[424777070,1781154643000,-500.0,0.00013698,2]
[424777079,1781154643000,-500.0,0.00013698,2]
[424777066,1781154643000,-500.0,0.00013698,2]
[424777060,1781154643000,-500.0,0.00013698,2]
[424777064,1781154643000,-500.0,0.00013698,2]
[424777044,1781154643000,-500.0,0.00013698,2]
[424777049,1781154643000,-500.0,0.00013698,2]
[424777047,1781154643000,-500.0,0.00013698,2]
[424777046,1781154643000,-500.0,0.00013698,2]
[424777045,1781154643000,-500.0,0.00013698,2]
[424777050,1781154643000,-500.0,0.00013698,2]
[424777048,1781154643000,-500.0,0.00013698,2]
[424777051,1781154643000,-415.12475003,0.00013698,2]
[424777052,1781154643000,-500.0,0.00013698,2]
[424777053,1781154643000,-500.0,0.00013698,2]
[424777055,1781154643000,-500.0,0.00013698,2]
[424777054,1781154643000,-500.0,0.00013698,2]
[424777057,1781154643000,-500.0,0.00013698,2]
[424777058,1781154643000,-500.0,0.00013698,2]
[424777056,1781154643000,-500.0,0.00013698,2]
[424777059,1781154643000,-500.0,0.00013698,2]
[424777061,1781154643000,-500.0,0.00013698,2]
[424777062,1781154643000,-500.0,0.00013698,2]
[424777067,1781154643000,-500.0,0.00013698,2]
[424777071,1781154643000,-500.0,0.00013698,2]
[424777068,1781154643000,-500.0,0.00013698,2]
[424777069,1781154643000,-500.0,0.00013698,2]
[424777065,1781154643000,-500.0,0.00013698,2]
[424777063,1781154643000,-500.0,0.00013698,2]
[424777091,1781154643000,-500.0,0.00013698,2]
[424777103,1781154643000,-500.0,0.00013698,2]
[424777099,1781154643000,-785.74,0.00013698,2]
[424777130,1781154643000,-2500.0,0.00013699,2]
[424777137,1781154643000,-500.0,0.00013699,2]
[424777133,1781154643000,-500.0,0.00013699,2]
[424777131,1781154643000,-200.0,0.00013699,2]
[424777138,1781154643000,-500.0,0.00013699,2]
[424777132,1781154643000,-22261.86,0.00013699,2]
[424777134,1781154643000,-500.0,0.00013699,2]
[424777135,1781154643000,-500.0,0.00013699,2]
[424777139,1781154643000,-500.0,0.00013699,2]
[424777136,1781154643000,-500.0,0.00013699,2]
[424777125,1781154643000,-500.0,0.00013698,2]
[424777140,1781154643000,-500.0,0.00013699,2]
[424777149,1781154643000,-150.0,0.00013702,2]
[424777148,1781154643000,-218.44302289,0.000137,2]
[424777145,1781154643000,-500.0,0.00013699,2]
[424777143,1781154643000,-500.0,0.00013699,2]
[424777147,1781154643000,-500.0,0.00013699,2]
[424777146,1781154643000,-500.0,0.00013699,2]
[424777142,1781154643000,-500.0,0.00013699,2]
[424777144,1781154643000,-500.0,0.00013699,2]
[424777151,1781154643000,-218.44302289,0.00013715,2]
[424777098,1781154643000,-785.74,0.00013698,2]
[424777141,1781154643000,-500.0,0.00013699,2]
[424777129,1781154643000,-771.36,0.00013699,2]
[424777150,1781154643000,-150.0,0.00013712,2]
[424777128,1781154643000,-154.27,0.00013699,2]
[424777123,1781154643000,-500.0,0.00013698,2]
[424777101,1781154643000,-500.0,0.00013698,2]
[424777107,1781154643000,-500.0,0.00013698,2]
[424777102,1781154643000,-500.0,0.00013698,2]
[424777106,1781154643000,-500.0,0.00013698,2]
[424777104,1781154643000,-500.0,0.00013698,2]
[424777108,1781154643000,-500.0,0.00013698,2]
[424777110,1781154643000,-593.24928622,0.00013698,2]
[424777111,1781154643000,-1133.92,0.00013698,2]
[424777115,1781154643000,-1133.92,0.00013698,2]
[424777109,1781154643000,-500.0,0.00013698,2]
[424777100,1781154643000,-785.74,0.00013698,2]
[424777114,1781154643000,-1133.92,0.00013698,2]
[424777112,1781154643000,-1133.92,0.00013698,2]
[424777113,1781154643000,-1133.92,0.00013698,2]
[424777117,1781154643000,-1133.92,0.00013698,2]
[424777116,1781154643000,-1133.92,0.00013698,2]
[424777120,1781154643000,-500.0,0.00013698,2]
[424777119,1781154643000,-500.0,0.00013698,2]
[424777121,1781154643000,-500.0,0.00013698,2]
[424777126,1781154643000,-503.42046644,0.00013698,2]
[424777122,1781154643000,-500.0,0.00013698,2]
[424777124,1781154643000,-500.0,0.00013698,2]
[424777118,1781154643000,-1133.92,0.00013698,2]
[424777193,1781154644000,-150.0,0.00013987,2]
[424777191,1781154644000,-150.0,0.00013974,2]
[424777185,1781154644000,-218.44302289,0.00013942,2]
[424777174,1781154644000,-218.44302289,0.00013866,2]
[424777182,1781154644000,-218.44302289,0.00013927,2]
[424777181,1781154644000,-150.0,0.00013916,2]
[424777175,1781154644000,-150.0,0.00013873,2]
[424777173,1781154644000,-150.0,0.00013862,2]
[424777183,1781154644000,-150.0,0.00013933,2]
[424777189,1781154644000,-452.72091936,0.00013963,2]
[424777187,1781154644000,-218.44302289,0.00013957,2]
[424777186,1781154644000,-150.0,0.00013944,2]
[424777188,1781154644000,-150.0,0.00013959,2]
[424777192,1781154644000,-150.0,0.00013987,2]
[424777190,1781154644000,-218.44302289,0.00013972,2]
[424777205,1781154644000,-26792.97625512,0.00014063,2]
[424777195,1781154644000,-150.0,0.00014001,2]
[424777197,1781154644000,-150.0,0.00014009,2]
[424777196,1781154644000,-218.44302289,0.00014002,2]
[424777198,1781154644000,-150.0,0.00014012,2]
[424777178,1781154644000,-150.0,0.00013893,2]
[424777184,1781154644000,-150.0,0.00013937,2]
[424777177,1781154644000,-218.44302289,0.00013881,2]
[424777164,1781154644000,-218.44302289,0.0001379,2]
[424777180,1781154644000,-218.44302289,0.00013912,2]
[424777199,1781154644000,-150.0,0.00014014,2]
[424777154,1781154644000,-150.0,0.00013737,2]
[424777152,1781154644000,-218.44302289,0.0001373,2]
[424777153,1781154644000,-150.0,0.00013731,2]
[424777155,1781154644000,-150.0,0.00013745,2]
[424777156,1781154644000,-218.44302289,0.00013745,2]
[424777160,1781154644000,-150.0,0.00013771,2]
[424777157,1781154644000,-150.0,0.00013748,2]
[424777159,1781154644000,-218.44302289,0.0001376,2]
[424777158,1781154644000,-250.0,0.00013748,2]
[424777179,1781154644000,-218.44302289,0.00013896,2]
[424777161,1781154644000,-218.44302289,0.00013775,2]
[424777165,1781154644000,-218.44302289,0.00013806,2]
[424777169,1781154644000,-150.0,0.0001383,2]
[424777168,1781154644000,-218.44302289,0.00013821,2]
[424777167,1781154644000,-150.0,0.00013813,2]
[424777163,1781154644000,-150.0,0.00013787,2]
[424777162,1781154644000,-150.0,0.00013787,2]
[424777170,1781154644000,-218.44302289,0.00013836,2]
[424777171,1781154644000,-218.44302289,0.00013851,2]
[424777176,1781154644000,-150.0,0.00013879,2]
[424777172,1781154644000,-150.0,0.00013852,2]
[424777166,1781154644000,-150.0,0.00013812,2]
[424777200,1781154644000,-218.44302289,0.00014017,2]
[424777194,1781154644000,-218.44302289,0.00013987,2]
[424777204,1781154644000,-150.0,0.00014055,2]
[424777231,1781154644000,-150.0,0.00014176,2]
[424777232,1781154644000,-218.44302289,0.00014184,2]
[424777236,1781154644000,-218.44302289,0.00014214,2]
[424777240,1781154644000,-500.0,0.00014231,2]
[424777235,1781154644000,-150.0,0.00014204,2]
[424777239,1781154644000,-218.44302289,0.00014229,2]
[424777230,1781154644000,-150.0,0.00014173,2]
[424777237,1781154644000,-150.0,0.00014216,2]
[424777234,1781154644000,-509.5,0.00014201,2]
[424777233,1781154644000,-218.44302289,0.00014199,2]
[424777229,1781154644000,-218.44302289,0.00014169,2]
[424777242,1781154644000,-150.0,0.00014237,2]
[424777244,1781154644000,-218.44302289,0.00014245,2]
[424777252,1781154644000,-150.0,0.00014301,2]
[424777246,1781154644000,-150.0,0.00014258,2]
[424777241,1781154644000,-985.2,0.00014231,2]
[424777245,1781154644000,-150.0,0.00014257,2]
[424777251,1781154644000,-150.0,0.00014298,2]
[424777249,1781154644000,-218.44302289,0.00014275,2]
[424777247,1781154644000,-218.44302289,0.0001426,2]
[424777250,1781154644000,-218.44302289,0.0001429,2]
[424777201,1781154644000,-218.44302289,0.00014033,2]
[424777243,1781154644000,-150.0,0.00014237,2]
[424777224,1781154644000,-500.0,0.00014144,2]
[424777238,1781154644000,-150.0,0.00014217,2]
[424777225,1781154644000,-500.0,0.00014144,2]
[424777223,1781154644000,-500.0,0.00014144,2]
[424777202,1781154644000,-150.0,0.00014044,2]
[424777203,1781154644000,-218.44302289,0.00014048,2]
[424777206,1781154644000,-218.44302289,0.00014063,2]
[424777209,1781154644000,-20036.23823755,0.0001407,2]
[424777211,1781154644000,-218.44302289,0.00014078,2]
[424777212,1781154644000,-150.0,0.00014087,2]
[424777207,1781154644000,-500.0,0.00014067,2]
[424777208,1781154644000,-785.74,0.00014067,2]
[424777213,1781154644000,-150.0,0.00014087,2]
[424777210,1781154644000,-150.0,0.00014074,2]
[424777215,1781154644000,-150.0,0.00014095,2]
[424777248,1781154644000,-150.0,0.0001427,2]
[424777214,1781154644000,-218.44302289,0.00014093,2]
[424777221,1781154644000,-150.0,0.00014139,2]
[424777219,1781154644000,-150.0,0.00014136,2]
[424777220,1781154644000,-218.44302289,0.00014139,2]
[424777227,1781154644000,-218.44302289,0.00014154,2]
[424777226,1781154644000,-1133.92,0.00014144,2]
[424777222,1781154644000,-824.93,0.00014142,2]
[424777228,1781154644000,-150.0,0.00014162,2]
[424777218,1781154644000,-150.0,0.0001413,2]
[424777216,1781154644000,-218.44302289,0.00014108,2]
[424777217,1781154644000,-218.44302289,0.00014123,2]
[424777291,1781154645000,-218.44302289,0.00014517,2]
[424777278,1781154645000,-150.0,0.0001446,2]
[424777284,1781154645000,-20036.23823755,0.00014485,2]
[424777285,1781154645000,-150.0,0.00014487,2]
[424777287,1781154645000,-218.44302289,0.00014487,2]
[424777296,1781154645000,-218.44302289,0.00014547,2]
[424777292,1781154645000,-150.0,0.0001453,2]
[424777286,1781154645000,-150.0,0.00014487,2]
[424777295,1781154645000,-150.0,0.00014541,2]
[424777289,1781154645000,-218.44302289,0.00014502,2]
[424777290,1781154645000,-150.0,0.00014515,2]
[424777288,1781154645000,-150.0,0.000145,2]
[424777306,1781154645000,-150.0,0.00014622,2]
[424777294,1781154645000,-150.0,0.00014537,2]
[424777298,1781154645000,-218.44302289,0.00014562,2]
[424777302,1781154645000,-150.0,0.00014595,2]
[424777304,1781154645000,-218.44302289,0.00014608,2]
[424777297,1781154645000,-150.0,0.00014558,2]
[424777305,1781154645000,-150.0,0.00014612,2]
[424777307,1781154645000,-218.44302289,0.00014623,2]
[424777300,1781154645000,-150.0,0.00014581,2]
[424777303,1781154645000,-150.0,0.00014601,2]
[424777299,1781154645000,-218.44302289,0.00014578,2]
[424777282,1781154645000,-150.0,0.00014472,2]
[424777293,1781154645000,-218.44302289,0.00014532,2]
[424777280,1781154645000,-150.0,0.00014465,2]
[424777255,1781154645000,-218.44302289,0.0001432,2]
[424777281,1781154645000,-218.44302289,0.00014472,2]
[424777253,1781154645000,-218.44302289,0.00014305,2]
[424777301,1781154645000,-218.44302289,0.00014593,2]
[424777257,1781154645000,-218.44302289,0.00014335,2]
[424777254,1781154645000,-150.0,0.00014312,2]
[424777262,1781154645000,-218.44302289,0.00014366,2]
[424777260,1781154645000,-218.44302289,0.00014351,2]
[424777261,1781154645000,-2215.8,0.00014361,2]
[424777263,1781154645000,-150.0,0.00014379,2]
[424777259,1781154645000,-150.0,0.00014344,2]
[424777258,1781154645000,-150.0,0.00014338,2]
[424777265,1781154645000,-150.0,0.00014387,2]
[424777264,1781154645000,-218.44302289,0.00014381,2]
[424777266,1781154645000,-150.0,0.00014387,2]
[424777274,1781154645000,-150.0,0.0001443,2]
[424777267,1781154645000,-218.44302289,0.00014396,2]
[424777273,1781154645000,-218.44302289,0.00014426,2]
[424777272,1781154645000,-150.0,0.00014419,2]
[424777268,1781154645000,-150.0,0.000144,2]
[424777269,1781154645000,-5369.0,0.000144,5]
[424777271,1781154645000,-218.44302289,0.00014411,2]
[424777270,1781154645000,-187.96152338,0.00014411,2]
[424777275,1781154645000,-452.72091935,0.00014432,2]
[424777277,1781154645000,-218.44302289,0.00014456,2]
[424777276,1781154645000,-218.44302289,0.00014441,2]
[424777279,1781154645000,-150.0,0.00014462,2]
[424777283,1781154645000,-26792.97625512,0.00014481,2]
[424777309,1781154645000,-151.0,0.0001463,2]
[424777256,1781154645000,-150.0,0.00014335,2]
[424777311,1781154645000,-150.0,0.00014644,2]
[424777336,1781154645000,-150.0,0.00014784,2]
[424777340,1781154645000,-218.44302289,0.00014805,2]
[424777339,1781154645000,-150.0,0.00014791,2]
[424777341,1781154645000,-150.0,0.00014815,2]
[424777344,1781154645000,-218.44302289,0.00014835,2]
[424777347,1781154645000,-218.44302289,0.0001485,2]
[424777348,1781154645000,-150.0,0.00014856,2]
[424777349,1781154645000,-150.0,0.00014858,2]
[424777351,1781154645000,-218.44302289,0.00014865,2]
[424777350,1781154645000,-150.0,0.00014865,2]
[424777353,1781154645000,-25000.0,0.00014874,3]
[424777346,1781154645000,-659.41051773,0.0001484,2]
[424777345,1781154645000,-150.0,0.00014836,2]
[424777358,1781154645000,-218.44302289,0.00014895,2]
[424777356,1781154645000,-25000.0,0.00014882,3]
[424777354,1781154645000,-792.19128265,0.00014877,2]
[424777359,1781154645000,-500.0,0.00014899,2]
[424777355,1781154645000,-218.44302289,0.0001488,2]
[424777360,1781154645000,-785.74,0.00014899,2]
[424777361,1781154645000,-25000.0,0.000149,3]
[424777363,1781154645000,-26792.97625512,0.000149,2]